Cogmind - Beta 15 @@@ ROGUE MODE // 2025.05.07 @ 18:11:28 Player: Picayune Result: Destroyed by S-43 Plague with Heavy Machine Gun Performance ------------- Evolutions (8) 4000 Regions Visited (12) 2400 Robots Destroyed (73) 365 Value Destroyed (3500) 3500 Prototype IDs (23) 460 Alien Tech Used (0) 0 Bonus (702) 702 TOTAL SCORE: 11427 Bonus ------- High Alert Combat Kills 302 Follower Combat Kills 186 Aligned with FarCom 300 Friendly Fire -86 Cogmind --------- Core Integrity 0/1450 Matter 300/300 Energy 98/100 System Corruption 3% Temperature Cool (0) Movement Core (50) Location -2/Research Parts ------- > --- POWER (3) -------- (None) > --- PROPULSION (8) --- (None) > --- UTILITY (6) ------ (None) > --- WEAPON (6) ------- (None) > --- INVENTORY (5) ---- Quantum Reactor Quantum Reactor Faulty High-density Centrium Leg Grenade Launcher Peak State ------------ > --- POWER ------------ Light Angular Momentum Engine Quantum Reactor Quantum Reactor > --- PROPULSION ------- Aluminum Leg Carbon-fiber Leg Flexi-carbon Leg Flexi-carbon Leg Advanced VSS Leg > --- UTILITY ---------- Improved Heat Sink Improved Heat Sink Advanced Cooling System Small Storage Unit Point Defense System > --- WEAPON ----------- Variable Charge Gun Enhanced Quantum Rifle Disruptor Cannon Disruptor Cannon Heavy Phase Cannon > --- INVENTORY -------- Grenade Launcher [Rating: 96] Favorites ----------- Power Light Nuclear Core Engine Improved Ion Engine Power Core Light Nuclear Core Reactor Quantum Reactor Propulsion Aluminum Leg Treads Light Treads Leg Aluminum Leg Wheel Compact Wheel Flight Unit Cesium-ion Thruster Utility Small Storage Unit Device Reaction Control System Storage Small Storage Unit Processor Improved Signal Interpreter Protection Improved Light Armor Plating Weapon Improved Light Cannon Energy Gun Variable Charge Gun Energy Cannon Heavy Phase Cannon Ballistic Gun KE Penetrator Ballistic Cannon Improved Light Cannon Launcher Improved Proton Missile Launcher Build | -11 -10 -10 -10 -9 -8 -7 -7 -6 -5 -4 -3 -2 ------- Run | Yrd Mat Min Exi Min Mat Fac Sto Fac Fac Fac Res Res Slots Evolved 16 | . . . . . 4 2 . 2 2 2 2 2 Power 2 | . . . . . . . . 1 . . . 1 Propulsion 6 | . . . . . 1 2 . . 1 1 1 . Utility 4 | . . . . . 1 . . 1 1 . 1 . Weapon 4 | . . . . . 2 . . . . 1 . 1 Parts Attached 63 | 7 4 . 1 1 8 6 8 2 5 14 1 6 Power 10 | 1 2 . . . 1 . 1 1 . 2 . 2 Engine 5 | 1 2 . . . 1 . . . . 1 . . Core 3 | . . . . . . . 1 1 . 1 . . Reactor 2 | . . . . . . . . . . . . 2 Propulsion 22 | 2 . . . . 4 4 5 . 3 4 . . Treads 3 | 1 . . . . 1 . 1 . . . . . Leg 15 | . . . . . . 4 4 . 3 4 . . Wheel 1 | 1 . . . . . . . . . . . . Hover . | . . . . . . . . . . . . . Flight 3 | . . . . . 3 . . . . . . . Utility 14 | 2 . . 1 . 2 . 1 1 1 5 1 . Device 9 | 1 . . . . 1 . . . 1 5 1 . Storage 1 | 1 . . . . . . . . . . . . Processor 3 | . . . 1 . 1 . 1 . . . . . Hackware . | . . . . . . . . . . . . . Protection 1 | . . . . . . . . 1 . . . . Artifact . | . . . . . . . . . . . . . Weapon 17 | 2 2 . . 1 1 2 1 . 1 3 . 4 Energy Gun 2 | . . . . . . . . . . 1 . 1 Energy Cannon 3 | . . . . . . . . . . 1 . 2 Ballistic Gun 4 | 2 . . . 1 . . . . 1 . . . Ballistic Cannon 6 | . 2 . . . 1 2 . . . . . 1 Launcher 2 | . . . . . . . 1 . . 1 . . Special Weapon . | . . . . . . . . . . . . . Impact Weapon . | . . . . . . . . . . . . . Slashing Weapon . | . . . . . . . . . . . . . Piercing Weapon . | . . . . . . . . . . . . . Special Melee Weapon . | . . . . . . . . . . . . . Unidentified Prototypes . | . . . . . . . . . . . . . Corrupted Parts 1 | . . . . 1 . . . . . . . . System Corruption 2 | . . . . 2 . . . . . . . . Parts Lost 44 | . . . . . . 5 5 . . 11 . 23 Power 5 | . . . . . . . . . . 2 . 3 Propulsion 18 | . . . . . . 3 4 . . 4 . 7 Utility 10 | . . . . . . . 1 . . 4 . 5 Weapon 11 | . . . . . . 2 . . . 1 . 8 Highest Loss Streak 18 | . . . . . . 5 4 . . 6 . 18 To Critical Strikes 1 | . . . . . . . . . . . . 1 Average Backups 6 | 3 7 8 6 5 5 6 8 5 7 5 1 1 Power 1 | . 2 2 1 1 1 2 2 1 2 1 . . Propulsion 1 | 2 2 2 1 1 1 . 1 1 1 1 . . Utility . | . 1 2 1 . . 1 2 1 1 . . . Weapon 2 | . 1 2 2 3 2 2 3 2 3 1 1 1 Tool/Special . | . . . . . . . . . . . . . Unused Backups 13 | . 7 . 2 . . 1 . . 1 . . 2 Power 4 | . 2 . . . . 1 . . . . . 1 Propulsion 6 | . 4 . 1 . . . . . . . . 1 Utility 1 | . . . 1 . . . . . . . . . Weapon 2 | . 1 . . . . . . . 1 . . . Tool/Special . | . . . . . . . . . . . . . Average Slot Usage (%) 84 | . 100 100 100 100 96 78 77 85 82 84 86 39 Engine 5 | . 14 14 14 14 9 7 3 . . 1 4 1 Core 4 | . . . . . . . 3 13 11 8 4 . Treads 5 | . 14 14 14 14 2 6 6 . . . . . Leg 17 | . . . . . . 10 26 33 32 32 33 12 Wheel 3 | . 14 14 14 14 1 . . . . . . . Flight 3 | . . . . . 23 10 . . . . . . Device 7 | . 14 14 14 . 4 7 2 . 2 13 20 9 Storage 7 | . 14 14 14 14 9 7 7 6 5 5 4 2 Processor 6 | . . . . 14 11 7 10 13 11 3 . . Protection 1 | . . . . . . . . 5 5 2 . . Ballistic Gun 2 | . 1 . . 4 8 2 . . 2 5 4 1 Ballistic Cannon 15 | . 26 28 28 23 26 16 13 12 7 3 . . Peak Build Rating 96 | 9 13 13 15 15 32 57 55 58 71 87 85 96 Average Rating 44 | 4 12 13 14 13 29 47 51 56 64 75 81 44 On Entrance 37 | . 9 13 13 13 15 32 55 51 58 71 78 85 Naked Turns 142 | . . . . . . . . . . . . 142 Heaviest Build 101 | 14 21 21 21 20 29 77 77 84 88 99 57 101 Greatest Support 113 | 20 16 16 16 16 16 48 53 53 73 103 113 113 Greatest Overweight (x) 15 | . 1 1 1 1 9 15 3 1 1 1 . 2 Average Overweight (x) . | . . 1 1 1 1 1 1 1 1 . . . Largest Inventory Capacity 8 | 8 8 8 8 8 8 8 8 8 8 8 8 8 Average Capacity 7 | 7 8 8 8 8 8 8 8 8 8 8 8 6 Most Carried 8 | 6 8 8 8 8 8 8 8 7 8 8 1 4 Average Carried 6 | 3 7 8 7 7 7 6 7 5 7 5 1 1 Final Capacity 8 | 8 8 8 8 8 8 8 8 8 8 8 8 5 Final Carried 8 | 6 8 8 7 8 8 8 7 7 8 2 1 4 Class Distribution -------------------- 36% | Scavenger-Skirmisher 28% | Mutant 21% | Skirmisher 13% | Scavenger-Tank Dominant Class ---------------- Mutant | -10/Materials Mutant | -10/Mines Mutant | -10/Exiles Mutant | -9/Mines Skirmisher | -8/Materials Skirmisher | -7/Factory Skirmisher | -7/Storage Scavenger-Skirmisher | -6/Factory Scavenger-Skirmisher | -5/Factory Scavenger-Tank | -4/Factory Scavenger-Skirmisher | -3/Research Scavenger-Skirmisher | -2/Research Resources | -11 -10 -10 -10 -9 -8 -7 -7 -6 -5 -4 -3 -2 ----------- Run | Yrd Mat Min Exi Min Mat Fac Sto Fac Fac Fac Res Res Matter Collected 1771 | 258 70 21 . 69 272 257 357 46 148 273 . . Remotely . | . . . . . . . . . . . . . Salvage Created 2271 | 24 . 8 . . 32 281 791 46 629 460 . . Parts 104 | 3 . 2 . . . 10 32 . 37 20 . . Haulers Intercepted . | . . . . . . . . . . . . . Recyclers Shooed 3 | . . . . . . . 2 . 1 . . . Parts Field Recycled . | . . . . . . . . . . . . . Retrieved Matter . | . . . . . . . . . . . . . Parts Self-Destructed . | . . . . . . . . . . . . . Prevented . | . . . . . . . . . . . . . Kills | -11 -10 -10 -10 -9 -8 -7 -7 -6 -5 -4 -3 -2 ------- Run | Yrd Mat Min Exi Min Mat Fac Sto Fac Fac Fac Res Res Combat Hostiles Destroyed 65 | . . 3 . . 1 7 30 1 16 7 . . Guns 4 | . . . . . . 1 . . . 3 . . Cannons 49 | . . 3 . . 1 6 22 1 13 3 . . AOE 11 | . . . . . . . 8 . 3 . . . Classes Destroyed 14 | 1 . 1 . . 1 4 4 . 2 1 . . Worker 1 | . . . . . . . . . 1 . . . Builder 3 | . . . . . . . . . 2 1 . . Tunneler 1 | 1 . . . . . . . . . . . . Recycler 1 | . . . . . . . 1 . . . . . Watcher 2 | . . . . . . 1 1 . . . . . Swarmer 8 | . . 3 . . . . . . 5 . . . Grunt 29 | . . . . . . 4 16 . 7 2 . . Brawler 2 | . . . . . . 1 1 . . . . . Duelist 6 | . . . . . . 2 3 . . 1 . . Protector 2 | . . . . . . . 2 . . . . . Sentry 7 | . . . . . . . 6 1 . . . . Specialist 2 | . . . . . . . . . . 2 . . Hunter 3 | . . . . . 1 . 1 . 1 . . . Programmer 6 | . . . . . . . 1 . 3 2 . . Best Kill Streak 12 | 1 . 2 . . 1 3 12 1 9 2 . . Combat Bots Only 11 | . . 2 . . 1 3 11 1 8 2 . . Max Kills in Single Turn 4 | 1 . 1 . . 1 1 2 1 4 1 . . Gunslinging . | . . . . . . . . . . . . . Exploded 3 | . . . . . . . 2 . 3 . . . Melee . | . . . . . . . . . . . . . Uniques/NPCs Destroyed . | . . . . . . . . . . . . . Combat | -11 -10 -10 -10 -9 -8 -7 -7 -6 -5 -4 -3 -2 -------- Run | Yrd Mat Min Exi Min Mat Fac Sto Fac Fac Fac Res Res Hostile Shots Fired 638 | . 1 31 . . 3 33 149 9 31 93 . 288 Missed 252 | . . 6 . . 1 8 77 5 11 33 . 111 Hits 386 | . 1 25 . . 2 25 72 4 20 60 . 177 Melee 9 | . . . . . . 7 2 . . . . . Projectile 377 | . 1 25 . . 2 18 70 4 20 60 . 177 Critical Strikes 21 | . . . . . . 7 . . 1 4 . 9 Damage Taken 6838 | . 10 205 . 61 29 535 879 35 370 1220 . 3494 Core 1717 | . 10 24 . 35 14 32 56 12 18 58 . 1458 Absorbed by Shields . | . . . . . . . . . . . . . Core Remaining (%) 93 | 100 . . . 72 97 . 87 98 98 94 100 . Volleys Fired 103 | 1 3 12 . . 6 13 24 3 11 28 . 2 Largest 4 | 2 2 2 . . 4 4 1 1 1 4 . 3 Hottest 238 | 40 66 66 . . 127 127 40 40 40 238 . 198 Shots Fired 330 | 2 6 24 . . 24 48 96 4 37 84 . 5 Gun 74 | 2 . . . . 6 12 . . 6 45 . 3 Cannon 239 | . 6 24 . . 18 36 82 2 30 39 . 2 Launcher 17 | . . . . . . . 14 2 1 . . . Special . | . . . . . . . . . . . . . Kinetic 271 | 2 6 24 . . 24 48 82 2 36 45 . 2 Thermal 42 | . . . . . . . . . . 39 . 3 Explosive 17 | . . . . . . . 14 2 1 . . . Electromagnetic . | . . . . . . . . . . . . . Robot Hit Streak 17 | 1 . 2 . . 4 11 14 12 17 9 . 2 Robot Miss Streak 6 | . 4 6 . . 5 3 3 . 2 3 . 1 Penetration Max 1 | . . . . . . . . . 1 1 . . Secondary Targets . | . . . . . . . . . . . . . Autonomous 113 | . . . . . . 6 73 1 26 7 . . Shots Hit Robots 219 | 1 . 7 . . 9 35 74 2 31 57 . 3 Core Hits 139 | 1 . 3 . . 3 16 72 1 21 20 . 2 Critical Kills 1 | . . . . . . . . . . 1 . . Critical Parts Destroyed . | . . . . . . . . . . . . . Critical Strikes 7 | . . . . . . 1 2 . 3 1 . . Meltdown 1 | . . . . . . . . . . 1 . . Blast 6 | . . . . . . 1 2 . 3 . . . Melee Attacks . | . . . . . . . . . . . . . Impact . | . . . . . . . . . . . . . Slashing . | . . . . . . . . . . . . . Piercing . | . . . . . . . . . . . . . Sneak Attacks . | . . . . . . . . . . . . . Combat Hostiles . | . . . . . . . . . . . . . Follow-up Attacks . | . . . . . . . . . . . . . Damage Inflicted 12419 | 15 23 147 . . 178 1104 6439 127 2262 2040 . 84 Guns 1318 | 15 . . . . 17 175 . . 202 867 . 42 Cannons 9060 | . 23 147 . . 161 927 4589 127 1877 1173 . 36 Explosions 2033 | . . . . . . . 1850 . 183 . . . Melee . | . . . . . . . . . . . . . Ramming 8 | . . . . . . 2 . . . . . 6 Kinetic 9517 | 15 23 147 . . 178 1102 4589 127 2079 1215 . 42 Thermal 861 | . . . . . . . . . . 825 . 36 Explosive 2033 | . . . . . . . 1850 . 183 . . . Electromagnetic . | . . . . . . . . . . . . . Impact . | . . . . . . . . . . . . . Slashing . | . . . . . . . . . . . . . Piercing . | . . . . . . . . . . . . . Highest Corruption 5 | . . . . 2 . 3 5 . . 4 . 3 Average Corruption 3 | . . . . 2 . 3 3 . . 3 . 2 Corruption Purged . | . . . . . . . . . . . . . Corruption Blocked . | . . . . . . . . . . . . . Effects 30 | . . . . 2 . 11 13 . . 2 . 2 Message Errors 12 | . . . . 1 . 3 8 . . . . . Matter Fused 6 | . . . . . . 5 1 . . . . . Heat Flow Errors 1 | . . . . . . . . . . . . 1 Energy Discharges 3 | . . . . 1 . 1 . . . . . 1 Data Loss (minor) 3 | . . . . . . 1 2 . . . . . Data Loss (major) 3 | . . . . . . 1 . . . 2 . . Alerts 1 | . . . . . . . 1 . . . . . Weapon Failures 1 | . . . . . . . 1 . . . . . Overload Shots . | . . . . . . . . . . . . . Overflow Damage 915 | . . 4 . . . 3 520 . 332 56 . . Projectiles 899 | . . 4 . . . 3 504 . 332 56 . . Explosions 16 | . . . . . . . 16 . . . . . Melee . | . . . . . . . . . . . . . Knockbacks 46 | . . 2 . . 2 10 23 . 6 3 . . Impact . | . . . . . . . . . . . . . Kinetic 40 | . . 2 . . 2 10 19 . 4 3 . . Secondary 6 | . . . . . . . 4 . 2 . . . Self-Inflicted Damage 79 | . . . . . . 1 76 . . . . 2 Shots 1 | . . . . . . . 1 . . . . . Rammed 3 | . . . . . . 1 . . . . . 2 Targets Rammed 3 | . . . . . . 1 . . . . . 2 Kicked . | . . . . . . . . . . . . . Crushed . | . . . . . . . . . . . . . Highest Temperature 421 | . 18 100 . . 129 267 11 . 36 421 . 117 Average Temperature 91 | . 9 46 . . 61 105 5 . 16 134 . 68 Received Heat Transfer 1105 | . 6 . . . 18 234 249 12 82 288 . 216 Effects 3 | . . . . . . 1 . . . 2 . . Energy Bleed 1 | . . . . . . 1 . . . . . . Interference 2 | . . . . . . . . . . 2 . . Siege Activations . | . . . . . . . . . . . . . Martial Activations . | . . . . . . . . . . . . . Shielding Activations . | . . . . . . . . . . . . . Robots Disrupted . | . . . . . . . . . . . . . Combat Hostiles . | . . . . . . . . . . . . . Robots Corrupted . | . . . . . . . . . . . . . Combat Hostiles . | . . . . . . . . . . . . . Parts Fried . | . . . . . . . . . . . . . Impact Corruptions 1 | . . . . . . . . . 1 . . . Robots Melted 1 | . . . . . . . . . . 1 . . Combat Hostiles 1 | . . . . . . . . . . 1 . . Parts Melted 2 | . . . . . 2 . . . . . . . Heat Transferred 1036 | . . . . . . . . . . 999 . 37 Parts Sabotaged . | . . . . . . . . . . . . . Parts Stolen . | . . . . . . . . . . . . . Parts Stripped . | . . . . . . . . . . . . . Power Chain Reactions . | . . . . . . . . . . . . . Alert | -11 -10 -10 -10 -9 -8 -7 -7 -6 -5 -4 -3 -2 ------- Run | Yrd Mat Min Exi Min Mat Fac Sto Fac Fac Fac Res Res Maximum Alert Level 3 | . . . . . . . 3 1 1 . . . Low Security (%) 81 | 100 100 100 . 100 100 100 21 23 85 100 100 100 Level 1 10 | . . . . . . . 2 76 14 . . . Level 2 6 | . . . . . . . 58 . . . . . Level 3 1 | . . . . . . . 17 . . . . . Level 4 . | . . . . . . . . . . . . . Level 5 . | . . . . . . . . . . . . . High Security . | . . . . . . . . . . . . . Max Security . | . . . . . . . . . . . . . Peak Influence 797 | 5 15 51 . . 122 76 797 347 244 119 1 105 Initial 347 | . . . . . . 14 . 347 76 111 1 . Average 113 | . . 27 . . 52 16 492 247 123 50 . 19 Influence Increases 2502 | 5 31 71 . . 215 203 1021 39 438 251 . 228 Destroy 0b10 Robot/C 1360 | . . 60 . . 100 140 560 20 320 160 . . Destroy 0b10 Robot/NC 60 | 5 . . . . 5 5 20 . 15 10 . . Destroy Leader 274 | . . 10 . . 30 12 132 10 60 20 . . Allied During Kill 50 | . . . . . 14 . . . 19 17 . . Successful Hack 10 | . . . . . 5 . . . . 5 . . Disable Machine 150 | . 15 . . . 60 15 60 . . . . . Anti-Garrison Action 150 | . . . . . . . 150 . . . . . Destroy Structure 148 | . 1 1 . . 1 1 84 9 24 24 . 3 Partial Spotted 15 | . . . . . . 15 . . . . . . Lose Combat Pursuer 285 | . 15 . . . . 15 15 . . 15 . 225 Influence Decreases 2397 | 5 31 70 1 . 182 236 256 648 366 476 3 123 Entered New Map 637 | . . . 1 . . 19 . 418 80 117 2 . Time Decay 1531 | 5 31 70 . . 162 152 206 230 286 288 1 100 Lost Part 171 | . . . . . . 50 50 . . 48 . 23 Lost Ally 58 | . . . . . 20 15 . . . 23 . . Squads Dispatched 29 | . 1 . . . 3 5 7 1 3 4 . 5 Investigation 5 | . 1 . . . 1 2 . . 1 . . . Extermination 6 | . . . . . . 1 1 . 1 1 . 2 Reinforcement 13 | . . . . . 2 2 2 1 1 3 . 2 Assault 3 | . . . . . . . 3 . . . . . Garrison 2 | . . . . . . . 1 . . . . 1 Intercept . | . . . . . . . . . . . . . Searches Triggered . | . . . . . . . . . . . . . Construction Impeded 1 | . . . . . . . 1 . . . . . Haulers Reinforced 2 | . . . . . . . 1 . . 1 . . Active Scanning Responses . | . . . . . . . . . . . . . Cargo Convoy Interrupts . | . . . . . . . . . . . . . Stealth | -11 -10 -10 -10 -9 -8 -7 -7 -6 -5 -4 -3 -2 --------- Run | Yrd Mat Min Exi Min Mat Fac Sto Fac Fac Fac Res Res Distress Signals 5 | . . . . . 2 . 1 . 1 . . 1 Communications Jammed . | . . . . . . . . . . . . . Distress Signals . | . . . . . . . . . . . . . Times Spotted 108 | . 5 3 . . 5 7 34 1 16 9 . 28 Peak Tracking Total 11 | . 3 3 . . 2 4 11 2 6 3 . 11 Tactical Retreats 11 | . 1 . . . . 1 1 . . 1 . 7 Traps | -11 -10 -10 -10 -9 -8 -7 -7 -6 -5 -4 -3 -2 ------- Run | Yrd Mat Min Exi Min Mat Fac Sto Fac Fac Fac Res Res Traps Triggered 7 | . 2 . . 1 1 1 2 . . . . . Indirectly . | . . . . . . . . . . . . . Trap Hack Attempts . | . . . . . . . . . . . . . Triggered . | . . . . . . . . . . . . . Disarmed . | . . . . . . . . . . . . . Reprogrammed . | . . . . . . . . . . . . . Reused . | . . . . . . . . . . . . . Traps Extracted . | . . . . . . . . . . . . . Installed . | . . . . . . . . . . . . . Triggered . | . . . . . . . . . . . . . Machines | -11 -10 -10 -10 -9 -8 -7 -7 -6 -5 -4 -3 -2 ---------- Run | Yrd Mat Min Exi Min Mat Fac Sto Fac Fac Fac Res Res Machines Disabled 11 | . 1 . . . 4 1 5 . . . . . Max in Single Turn 2 | . 1 . . . 2 1 1 . . . . . Garrison Access 1 | . . . . . . . 1 . . . . . Machines Repaired . | . . . . . . . . . . . . . Machines Dismantled . | . . . . . . . . . . . . . Machines Sabotaged . | . . . . . . . . . . . . . Overloaded Fab Kills . | . . . . . . . . . . . . . Hacking | -11 -10 -10 -10 -9 -8 -7 -7 -6 -5 -4 -3 -2 --------- Run | Yrd Mat Min Exi Min Mat Fac Sto Fac Fac Fac Res Res Machines Accessed 18 | . 2 . 1 1 2 2 3 1 1 4 . 1 Terminals 13 | . 1 . . . 2 1 3 1 . 4 . 1 Fabricators . | . . . . . . . . . . . . . Repair Stations . | . . . . . . . . . . . . . Recycling Units 1 | . 1 . . . . . . . . . . . Scanalyzers . | . . . . . . . . . . . . . Garrison Access 2 | . . . . . . 1 . . 1 . . . Total Hacks 37 | . 4 . 1 1 8 6 6 1 1 7 . 2 Successful 15 | . 4 . 1 1 4 1 1 1 1 1 . . Failed 22 | . . . . . 4 5 5 . . 6 . 2 Catastrophic 4 | . . . . . . . 1 . . 3 . . Database Lockouts . | . . . . . . . . . . . . . Manual 34 | . 2 . 1 . 8 7 6 1 1 7 . 1 Terminals 30 | . 2 . . . 8 4 6 1 . 7 . 2 Fabricators . | . . . . . . . . . . . . . Repair Stations . | . . . . . . . . . . . . . Recycling Units 2 | . 2 . . . . . . . . . . . Scanalyzers . | . . . . . . . . . . . . . Garrison Access 3 | . . . . . . 2 . . 1 . . . Terminal Hacks 6 | . 1 . 1 1 2 . . 1 . . . . Record 1 | . 1 . . . . . . . . . . . Open Door 1 | . . . . 1 . . . . . . . . Terminal Index 1 | . . . . . 1 . . . . . . . Alert Level 2 | . . . . . 1 . . 1 . . . . Proto ID Catalog 1 | . . . 1 . . . . . . . . . Fabricator Hacks . | . . . . . . . . . . . . . Repair Station Hacks . | . . . . . . . . . . . . . Recycling Unit Hacks 1 | . 1 . . . . . . . . . . . Report Inventory 1 | . 1 . . . . . . . . . . . Scanalyzer . | . . . . . . . . . . . . . Garrison Access Hacks . | . . . . . . . . . . . . . Unauthorized Hacks 8 | . 2 . . . 2 1 1 . 1 1 . . Terminals 6 | . 1 . . . 2 1 1 . . 1 . . Botnet 6 | . 1 . . . 2 1 1 . . 1 . . Fabricators . | . . . . . . . . . . . . . Repair Stations . | . . . . . . . . . . . . . Recycling Units 1 | . 1 . . . . . . . . . . . Monitor 1 | . 1 . . . . . . . . . . . Scanalyzers . | . . . . . . . . . . . . . Garrison Access 1 | . . . . . . . . . 1 . . . Reprogram 1 | . . . . . . . . . 1 . . . Data Cores Recovered . | . . . . . . . . . . . . . Used . | . . . . . . . . . . . . . Hacking Detections 15 | . 1 . . . 2 2 3 1 1 4 . 1 Full Trace Events . | . . . . . . . . . . . . . Feedback Events . | . . . . . . . . . . . . . Feedback Blocked . | . . . . . . . . . . . . . Robot Schematics Acquired . | . . . . . . . . . . . . . Robots Built . | . . . . . . . . . . . . . Authchips . | . . . . . . . . . . . . . Time . | . . . . . . . . . . . . . Total Robot Build Rating . | . . . . . . . . . . . . . Part Schematics Acquired . | . . . . . . . . . . . . . Parts Built . | . . . . . . . . . . . . . Authchips . | . . . . . . . . . . . . . Time . | . . . . . . . . . . . . . Total Part Build Rating . | . . . . . . . . . . . . . Parts Repaired . | . . . . . . . . . . . . . Time . | . . . . . . . . . . . . . Parts Recycled . | . . . . . . . . . . . . . Recycled Matter . | . . . . . . . . . . . . . Retrieved Matter . | . . . . . . . . . . . . . Retrieved Components . | . . . . . . . . . . . . . Parts Scanalyzed . | . . . . . . . . . . . . . Part Schematics Acquired . | . . . . . . . . . . . . . Parts Damaged . | . . . . . . . . . . . . . Bothacking | -11 -10 -10 -10 -9 -8 -7 -7 -6 -5 -4 -3 -2 ------------ Run | Yrd Mat Min Exi Min Mat Fac Sto Fac Fac Fac Res Res Used RIF Installer . | . . . . . . . . . . . . . Robots Hacked . | . . . . . . . . . . . . . Non-combat . | . . . . . . . . . . . . . Combat . | . . . . . . . . . . . . . Robot Hacks Applied . | . . . . . . . . . . . . . Relay Couplers Released 2 | . . . . . . . 2 . . . . . Machine Destruction 2 | . . . . . . . 2 . . . . . Fabnet Peak Effective % . | . . . . . . . . . . . . . Robots Rewired . | . . . . . . . . . . . . . Allies Hacked . | . . . . . . . . . . . . . Hacks Repelled . | . . . . . . . . . . . . . Allies | -11 -10 -10 -10 -9 -8 -7 -7 -6 -5 -4 -3 -2 -------- Run | Yrd Mat Min Exi Min Mat Fac Sto Fac Fac Fac Res Res Total Allies 5 | . . . . 3 . . . . 2 . . . Largest Group 3 | . . . . 3 3 1 . . 2 2 . . Highest-Rated Group 92 | . . . . 77 77 31 . . 92 92 . . Highest-Rated Ally 46 | . . . . 31 31 31 . . 46 46 . . Total Orders . | . . . . . . . . . . . . . Ally Attacks 41 | . . . . . 18 2 . . 4 17 . . Total Damage 516 | . . . . . 273 . . . 67 176 . . Kills 7 | . . . . . 5 . . . . 2 . . Allies Corrupted . | . . . . . . . . . . . . . Allies Melted . | . . . . . . . . . . . . . Intel | -11 -10 -10 -10 -9 -8 -7 -7 -6 -5 -4 -3 -2 ------- Run | Yrd Mat Min Exi Min Mat Fac Sto Fac Fac Fac Res Res Active Infowar (turns) 2767 | 8 416 149 432 . . . 212 483 685 382 . . Optics 1762 | . . . . . . . 212 483 685 382 . . Terrain 1005 | 8 416 149 432 . . . . . . . . . Robot Analysis Total . | . . . . . . . . . . . . . Derelict Logs Recovered 1 | . . . . 1 . . . . . . . . Drone Launches . | . . . . . . . . . . . . . Drone Recoveries . | . . . . . . . . . . . . . Exploration | -11 -10 -10 -10 -9 -8 -7 -7 -6 -5 -4 -3 -2 ------------- Run | Yrd Mat Min Exi Min Mat Fac Sto Fac Fac Fac Res Res Turns Passed 5193 | 82 416 149 433 252 430 688 523 483 685 644 73 335 Spaces Moved 3051 | 61 278 95 372 172 329 252 199 246 280 316 57 394 Core 276 | 4 . . . . 1 . . . . . . 271 Treads 40 | 5 . . . . . 35 . . . . . . Legs 1334 | . . . . . . 113 199 246 280 316 57 123 Wheels 1000 | 52 278 95 372 172 31 . . . . . . . Hover . | . . . . . . . . . . . . . Flight 401 | . . . . . 297 104 . . . . . . Fastest Speed 50 | 50 100 115 115 115 109 109 190 190 190 114 115 50 Average Speed 143 | 101 114 115 115 115 111 228 227 190 190 153 115 78 Slowest Speed 1255 | 160 115 115 115 115 500 1255 330 190 190 190 115 260 Overloaded Moves . | . . . . . . . . . . . . . Propulsion Burnouts . | . . . . . . . . . . . . . Robots Hopped . | . . . . . . . . . . . . . Potential Cave-ins . | . . . . . . . . . . . . . Cave-ins Triggered . | . . . . . . . . . . . . . Exploration Rate (%) 25 | 3 45 33 86 35 31 5 45 9 13 11 2 17 Regions Visited 12 Branch Regions 4 Pre-discovered Areas . | . . . . . . . . . . . . . Known Exits Taken 7 | . . . 1 1 1 1 1 1 1 . . . Unknown Exits Taken 5 | 1 1 1 . . . . . . . 1 1 . Scrap Searched 1 | . . . . 1 . . . . . . . . Spaces Dug . | . . . . . . . . . . . . . Terrain Destroyed 122 | . 1 2 . . 1 . 84 9 12 12 . 1 Melee . | . . . . . . . . . . . . . Projectile 38 | . 1 2 . . 1 . 15 . 6 12 . 1 AOE 84 | . . . . . . . 69 9 6 . . . Terrain Rammed . | . . . . . . . . . . . . . Walls Destroyed . | . . . . . . . . . . . . . Machines Disabled . | . . . . . . . . . . . . . Actions | -11 -10 -10 -10 -9 -8 -7 -7 -6 -5 -4 -3 -2 --------- Run | Yrd Mat Min Exi Min Mat Fac Sto Fac Fac Fac Res Res Total 3676 | 75 372 110 379 225 373 330 241 258 422 414 64 413 Wait 382 | 1 65 3 2 52 22 48 3 4 120 50 6 6 Move 3039 | 60 277 94 371 171 328 251 198 245 279 315 56 394 Hop . | . . . . . . . . . . . . . Pick Up 33 | 6 10 . 1 1 1 6 . 2 2 1 . 3 Fast Attach 46 | 7 4 . . . 7 4 8 . 2 7 1 6 Attach 18 | . . . 1 . 3 3 . 2 . 8 1 . Detach 4 | . . . . . 3 . . . . 1 . . Swap 24 | . 4 1 . 1 2 2 5 2 5 2 . . Drop 24 | . 9 . 4 . 1 2 3 . 3 2 . . Fire 103 | 1 3 12 . . 6 13 24 3 11 28 . 2 Melee . | . . . . . . . . . . . . . Ram 3 | . . . . . . 1 . . . . . 2 Kick . | . . . . . . . . . . . . . Crush . | . . . . . . . . . . . . . Escape Stasis . | . . . . . . . . . . . . . Rewire . | . . . . . . . . . . . . . Trap . | . . . . . . . . . . . . . Miscellaneous . | . . . . . . . . . . . . . Route ------- -11/Scrapyard -10/Materials (discovered 2 exits: [*Mat] / [*Min]) -10/Mines (discovered 2 exits: [*Mat] / *Exi) -10/Exiles -9/Mines (discovered 2 exits: *Mat x2) -8/Materials -7/Factory (discovered 3 exits: *Fac / *Sto / Low) -7/Storage -6/Factory -5/Factory -4/Factory (discovered 2 exits: [*Res x2]) -3/Research -2/Research History --------- Turn | Location | Event 41 | -11/Scrapyard | Discovered new exit (range 14) 83 | -11/Scrapyard | Entered Materials 84 | -10/Materials | Met a group of wandering Federalists 245 | -10/Materials | Discovered new exit (range 7) 316 | -10/Materials | Build established: Mutant 390 | -10/Materials | Discovered new exit (range 7) 499 | -10/Materials | Entered Mines 581 | -10/Mines | Discovered new exit (range 14) 643 | -10/Mines | Deemed a non-threat by the Exiles lab entrance 643 | -10/Mines | Discovered new exit (range 5) 648 | -10/Mines | Entered Exiles 676 | -10/Exiles | Met 8R-AWN 697 | -10/Exiles | Met EX-HEX 732 | -10/Exiles | Met EX-BIN 745 | -10/Exiles | Aligned with FarCom system 746 | -10/Exiles | Given EX-Vault access code 778 | -10/Exiles | Opened EX-Vault 796 | -10/Exiles | Found AWS/Autocannon 820 | -10/Exiles | Warned to stay clear of 0b10 Research branches 856 | -10/Exiles | Met EX-DEC 895 | -10/Exiles | Visited The Gauntlet 1060 | -10/Exiles | Discovered new exit (range 14) 1081 | -10/Exiles | Identified exit to Mines 1081 | -10/Exiles | Left Exiles lab with AWS/Autocannon 1081 | -10/Exiles | Entered Mines 1121 | -9/Mines | Received a Mining Laser from a helpful Derelict 1127 | -9/Mines | Found a hidden stash of uninstalled traps 1236 | -9/Mines | Met a Derelict who couldn't figure out how to use a Trap Extractor 1299 | -9/Mines | Discovered new exit (range 4) 1304 | -9/Mines | Identified exit to Materials 1305 | -9/Mines | Discovered exit to Materials (range 13) 1333 | -9/Mines | Entered Materials 1333 | -8/Materials | Accompanied by 3 allies 1333 | -8/Materials | Evolved 4 slots: Propulsion x1, Utility x1, Weapon x2 1338 | -8/Materials | Led the pair of lost Derelicts to an unsafe place 1527 | -8/Materials | Met 7R-MNS 1629 | -8/Materials | Build established: Skirmisher 1693 | -8/Materials | Discovered new exit (range 6) 1698 | -8/Materials | Identified exit to Factory 1763 | -8/Materials | Entered Factory 1763 | -7/Factory | Accompanied by 1 ally 1763 | -7/Factory | Evolved 2 slots: Propulsion x2 1764 | -7/Factory | Caught up to 7R-MNS 1764 | -7/Factory | Identified exit to Lower Caves 1797 | -7/Factory | Discovered new exit (range 13) 1986 | -7/Factory | Lost 5 parts (3n2w) 2413 | -7/Factory | Discovered new exit (range 12) 2432 | -7/Factory | Identified exit to Storage 2444 | -7/Factory | Build established: Scavenger-Skirmisher 2451 | -7/Factory | Entered Storage 2601 | -7/Storage | Destroyed 10 combat bots 2667 | -7/Storage | Lost 4 parts (3n1u) 2675 | -7/Storage | Destroyed 11 combat bots 2851 | -7/Storage | First assault squad dispatched 2884 | -7/Storage | Build established: Skirmisher 2949 | -7/Storage | Discovered new exit (range 9) 2972 | -7/Storage | Identified exit to Factory 2974 | -7/Storage | Entered Factory 2974 | -6/Factory | Evolved 2 slots: Power x1, Utility x1 3191 | -6/Factory | Build established: Scavenger-Skirmisher 3271 | -6/Factory | Spotted B-75 Beast 3410 | -6/Factory | Discovered new exit (range 9) 3424 | -6/Factory | Identified exit to Factory 3457 | -6/Factory | Entered another Factory area 3457 | -5/Factory | Evolved 2 slots: Propulsion x1, Utility x1 3729 | -5/Factory | Destroyed 8 combat bots 4105 | -5/Factory | Discovered new exit (range 19) 4109 | -5/Factory | Build established: Scavenger-Tank 4139 | -5/Factory | Identified exit to Factory 4142 | -5/Factory | Entered another Factory area 4142 | -4/Factory | Accompanied by 2 allies 4142 | -4/Factory | Evolved 2 slots: Propulsion x1, Weapon x1 4492 | -4/Factory | AWS/Autocannon suddenly broke down 4555 | -4/Factory | Lost 5 parts (1p1n3u) 4645 | -4/Factory | Lost 6 parts (1p3n1u1w) 4771 | -4/Factory | Discovered new exit (range 6) 4776 | -4/Factory | Discovered new exit (range 6) 4786 | -4/Factory | Entered Research 4786 | -3/Research | Evolved 2 slots: Propulsion x1, Utility x1 4807 | -3/Research | Build established: Scavenger-Skirmisher 4849 | -3/Research | Discovered new exit (range 9) 4859 | -3/Research | Entered another Research area 4859 | -2/Research | Evolved 2 slots: Power x1, Weapon x1 4865 | -2/Research | Garrison activated, responded to threat 4973 | -2/Research | Lost 5 parts (1p2n1u1w) 5052 | -2/Research | Released all parts (2) 5082 | -2/Research | Lost 18 parts (2p5n4u7w) 5097 | -2/Research | Core integrity fell below 50% 5191 | -2/Research | Core integrity fell below 20% 5194 | -2/Research | Destroyed by S-43 Plague with Heavy Machine Gun Last Messages --------------- 05060_ ALERT: Potential suspicious activity detected, Programmers report to Research Zone 7I. 05066_ Slug penetrates Wall. 05069_ Connecting with Terminal... 05069_ Current location identified: Research 05071_ Acquired Quantum Reactor. 05089_ Knocked back. 05101_ System corrupted: Heat flow error (+166). 05116_ K-01 Serf destroyed. 05121_ W-44 Eye sends out distress signal. 05125_ System corrupted: Energy discharge (-26). 05157_ Acquired Prototype Leg. 05162_ Slammed into P-80 Master. 05174_ ALERT: Cargo convoy en route, clear transfer corridor. 05189_ ALERT: Potential suspicious activity detected, Programmers report to Research Zone 3O. [Achievement: Back For More] Map ----- +----------------------------------------------------+ | ?????????????????????????????????????????????????? | | ?????????????????????????????????????????????????? | | ?????????????????????????????????????????????????? | | ?????????????????????????????????????????????????? | | ?????????????????????????????????????????????????? | | ?????????????????????????????????????????????????? | | ?????????????????????????????????????????????????? | | ?????????????????????????????????????????????????? | | ?????????????????????????????????????????????????? | | ?????????????????????????????????????????????????? | | ?????????????????????????????????????????????????? | | ?????????????????????????????????????????????????? | | ?????????????????????????????????????????????????? | | ?????????????????????????????????????????????????? | | ?????????????????????????????????????????????????? | | ??????????????????????w???????"??????????????????? | | ??????????????????????????????"""????????????????? | | ????????????????????????????? """????????????????? | | ????????????????????????????? """ ???????????????? | | ???????????????###########?? """ ???????????????? | | ???????????????# #?? """????????????????? | | ???????????????# #? ????????C?????????? | | ????????????????? #? ???????????????????? | | ??????????????????? ?? ????????????????????? | | ?####################;#### #?????????????????????? | | ?# " @s#?????????????????????? | | ?# # s #?????????????????????? | | ?# # #?????????????????????? | | ?# ?# #?????????????????????? | | ?# ?# ss ???????????????????? | | ?# ??# s ##+####??????????????????? | | ?#####??# s ^#????????????????????????? | | ????????# s s #????????????????????????? | | ????????# p######## ###????????????????????????? | | ????????#### #??????#s#??????????????????????????? | | ???????????# #??????#s#??????????????????????????? | | ???????????# #?????? ??????????????????????????? | | ???????????# #?????? ??????????????????????????? | | ?????####### #????? ! ?????????????????????????? | | ?????+ #?????? ??????????????????????????? | | ?????# #?????? ??????????????????????????? | | ?##### #???????????????????????????????????? | | ?# #????????????????Y??????????????????? | | ?# #???????????????????????????????????? | | ?# +???????????????????????????????????? | | ?# #???????????????????????????????????? | | ?# #### ###???????????????????????????????????? | | ?# #??# #?????????????????????????????????????? | | ?# #??# #?????????????????????????????????????? | | ?# #??#+########??????????????????????????????? | +----------------------------------------------------+ Best States ------------- Heat Dissipation 108 Energy Generation 58 Energy Capacity 650 Matter Stores 300 Matter Capacity 300 Sight Range 20 Terrain Scan Range 16 Terrain Scan Density 10 Armor Coverage 150 Resistance: EX 50 Point Defense Rating 80 Evasion (%) 67 Recoil Reduction 6 Item Schematics ----------------- None Robot Schematics ------------------ None Fabricated ------------ Nothing Repaired ---------- Nothing Alien Tech Used ----------------- None Achievements -------------- Back For More Challenges ------------ None Game ------ Seed RecyclingHardcellDrive Manual? 0 Play Time 00:57:24 Cumulative 63.4 hours Start 2025.05.07 @ 17:11:33 End 2025.05.07 @ 18:11:28 Sessions 1 Manual Loads 0 Difficulty Rogue Special Mode None Game No. 51 Rogue 51 Adventurer 0 Explorer 0 Win Type - Total 0 Types 0/0/0/0/0/0/0/0/0/0 Lore% 23 Gallery% 40 Achievement% 35 Wizard Run 0 Options --------- Layout 1 ASCII 0 Keyboard 1 Movement Numpad Keybinds 0 Fullscreen 1 Font 32/SmallcapsGlow Map View 50x35 Zoom Use 0% Tactical HUD 1 Map Filters NONE Filters NONE Steam 1 RUN: b575e62f-6a5c-4278-97cf-27795eca392c